{"text_format":"1","workbook":"xlsx","n_sheets":3,"sheets":["Annexo 4 Seguimiento actividad","LEYENDAS","DESPL."],"not_rendered":{"charts":0,"images":1,"macros":1,"external_links":0,"defined_names":3,"comments":2,"pivot_tables":0},"unopened":[],"bounds":{"document_bytes":16777216,"sheet_cells":100000,"rows_first":2000,"rows_last":500,"rows_between":2000,"halvings":0,"cell_chars":16384,"cell_head_chars":4096},"cells_cut":0,"cells_raw":0,"read":"whole","date_system":"1900"}

{"sheet":"Annexo 4 Seguimiento actividad","index":0,"n_rows":39,"n_cols":22,"rows_kept":39,"cut":false,"hidden":false,"merged":[[34,10,34,21],[35,10,35,21],[38,12,38,14],[0,1,0,9],[5,1,5,5],[2,1,2,2],[2,3,2,4],[3,1,3,2],[3,3,3,4],[4,1,4,2],[4,3,4,4]]}
[null,"Relación clasificada de todos los gastos realizados en los conceptos subvencionables"]
[]
[null,"Persona física/jurídica beneficiaria:         "]
[null,"NIF entidad:"]
[null,"Código de subvención:"]
[]
[]
["núm. Orden","NOMBRE DEL NIÑO/A","APELLIDOS DEL NIÑO/A","SEXO DEL NIÑO/A","FECHA NACIMIENTO","Nº IDALU\n(enlace de consulta en la hoja Leyendas","CERTIFICADO DE DISCAPACIDAD\n(Sí / No)","GRADO  DISCAPACIDAD\n(porcentaje reconocido)","TIPOLOGÍA DISCAPACIDAD","INFORME RED PÚBLICA\n(Sí / No)","NOMBRE ESCUELA/INSTITUTO/EBM DE ESCOLARIZACIÓN DEL NIÑO/A","TIPOS DE SUPORTE INTENSIVO EN LA ESCOLARITZACIÓN","BAREMO MOBILIDAD REDUCIDA \n(Sí / No)","BAREMO TERCERA PERSONA\n(Sí / No)","VALORACIÓN DEPENDÈNCIA","ENTIDAD","NIF ENTIDAD","NOMBRE ACTIVIDAD","CODI ACTIVIDAD","MÓDULO ACTIVIDAD\n(A / B / C)","Nº  DE TURNOS QUE REALIZARÁ EL NIÑO/A EN ESTA ACTIVIDAD","Nº DE DÍAS DE COLONIES QUE REALIZARÁ EL NIÑO/A"]
[{"$f":"IF(B9<>\"\",1,\"\")","v":""}]
[{"$f":"IF(B10<>\"\",MAX($A$9:A9)+1,\"\")","v":""}]
[{"$f":"IF(B11<>\"\",MAX($A$9:A10)+1,\"\")","v":""}]
[{"$f":"IF(B12<>\"\",MAX($A$9:A11)+1,\"\")","v":""}]
[{"$f":"IF(B13<>\"\",MAX($A$9:A12)+1,\"\")","v":""}]
[{"$f":"IF(B14<>\"\",MAX($A$9:A13)+1,\"\")","v":""}]
[{"$f":"IF(B15<>\"\",MAX($A$9:A14)+1,\"\")","v":""}]
[{"$f":"IF(B16<>\"\",MAX($A$9:A15)+1,\"\")","v":""}]
[{"$f":"IF(B17<>\"\",MAX($A$9:A16)+1,\"\")","v":""}]
[{"$f":"IF(B18<>\"\",MAX($A$9:A17)+1,\"\")","v":""}]
[{"$f":"IF(B19<>\"\",MAX($A$9:A18)+1,\"\")","v":""}]
[{"$f":"IF(B20<>\"\",MAX($A$9:A19)+1,\"\")","v":""}]
[{"$f":"IF(B21<>\"\",MAX($A$9:A20)+1,\"\")","v":""}]
[{"$f":"IF(B22<>\"\",MAX($A$9:A21)+1,\"\")","v":""}]
[{"$f":"IF(B23<>\"\",MAX($A$9:A22)+1,\"\")","v":""}]
[{"$f":"IF(B24<>\"\",MAX($A$9:A23)+1,\"\")","v":""}]
[{"$f":"IF(B25<>\"\",MAX($A$9:A24)+1,\"\")","v":""}]
[{"$f":"IF(B26<>\"\",MAX($A$9:A25)+1,\"\")","v":""}]
[{"$f":"IF(B27<>\"\",MAX($A$9:A26)+1,\"\")","v":""}]
[{"$f":"IF(B28<>\"\",MAX($A$9:A27)+1,\"\")","v":""}]
[{"$f":"IF(B29<>\"\",MAX($A$9:A28)+1,\"\")","v":""}]
[{"$f":"IF(B30<>\"\",MAX($A$9:A29)+1,\"\")","v":""}]
[{"$f":"IF(B31<>\"\",MAX($A$9:A30)+1,\"\")","v":""}]
[{"$f":"IF(B32<>\"\",MAX($A$9:A31)+1,\"\")","v":""}]
[{"$f":"IF(B33<>\"\",MAX($A$9:A32)+1,\"\")","v":""}]
[]
[null,null,null,null,null,null,null,null,null,null,"El Sr./Sra. (indicar el nombre y apellidos) de la persona representante que firma la justificación) con DNI/NIE (indicar el núm. DNI) en calidad de persona física beneficiaria o representante legal de la persona jurídica beneficiaria (indicar nombre y apellidos) con  NIF (indicar núm . NIF)."]
[null,null,null,null,null,null,null,null,null,null,"CERTIFICA que la Entidad custodiará la documentación de soporte que acredita la condición de usuarias de las personas consignadas en esta hoja; que esta documentación se encuentra a disposición del Ajuntament de Barcelona o de los otros entes municipales en los archivos de esta Entidad, durante un periodo mínimo de 4 años, contando desde la fecha de presentación de la presente justificación."]
[]
[]
[null,null,null,null,null,null,null,null,null,null,null,"Población y fecha:  ",null,null,null,"Firmado digitalmente"]

{"sheet":"LEYENDAS","index":1,"n_rows":24,"n_cols":2,"rows_kept":24,"cut":false,"hidden":false,"merged":[[2,0,2,1]]}
[]
[]
["LEYENDA SEGUIMIENTO DE LA ACTIVIDAD"]
["NOMBRE DEL NIÑO/A","Nombre"]
["APELLIDOS DEL NIÑO/A","Primero y segundo apellido"]
["SEXO DEL NIÑO/A","Hombre / Mujer / Otros"]
["FECHA NACIMIENTO","Fecha nacimiento"]
["Nº IDALU\n(enlace de consulta en la hoja Leyendas","Número identificació de l'alumne en el Registre d'Alumnes del Departament d'Educació.\nhttps://educacio.gencat.cat/ca/tramits/tramits-temes/identificador-alumne"]
["CERTIFICADO DE DISCAPACIDAD\n(Sí / No)","Disposa de certificado de discapacidad? Sí /No"]
["GRADO  DISCAPACIDAD\n(porcentaje reconocido)","Grado en % reconocido de la discapacidad."]
["TIPOLOGIA DISCAPACIDAD","Categorías determinadas por la Dirección General de Protección Social: Física motórica, física no motórica, física-intelectual, trastorno mental, intelectual, visual y auditiva.\nCategorías addcionals IMPD: Retraso generalizado del desarrollo, Trastorno del Espectro Autista (TEA)."]
["INFORME RED PÚBLICA\n(Sí / No)","Niños/as menores de 6 años sin grado de discapacidad reconocido que presenta informe de la Red Pública de Salud, Derechos Sociales o Educación que indique la necesidad de apoyo intensivo."]
["NOMBRE ESCUELA/INSTITUTO/EBM DE ESCOLARITZACIÓN DEL NIÑO/A","Nombre del centro educativo al que ha asistido en el curso 23-24 o asistirá en el curso 24-25."]
["TIPOS DE SUPORTE INTENSIVO EN LA ESCOLARITZACIÓN","SIEI, SIAL, AIS, ESCOLA ESPECIAL, SIE BRESSOL, RESERVA NESE A."]
["BAREMO MOBILIDAD REDUCIDA \n(Sí / No)","Si tiene o no reconocido el baremo de mobilidad reducida.Esta información está presente en la tarjeta acreditativa de la discapacidad."]
["BAREMO TERCERA PERSONA\n(Sí / No)","Si tiene o no reconocida la necesidad de concurso de 3a Persona. Esta información está presente en la tarjeta acreditativa de la discapacidad."]
["VALORACIÓN DEPENDÈNCIA","Si tiene valoración de la Ley de la Dependencia  y en qué grado. "]
["ENTIDAD","Nombre de l'entidad"]
["NIF ENTIDAD","NIF de l'entidad."]
["NOMBRE ACTIVIDAD","Nombre de la actividad; Por ejemplo Casal Escola Pere Barber"]
["CODI ACTIVIDAD","Código  de habilitación a la CVE."]
["MÓDULO ACTIVIDAD\n(A / B / C)","Activitades de mañana(A), actividades de todo el dia, comida incluida(B), colonias (C)."]
["Nº  DE TURNOS QUE REALIZARÁ EL NIÑO/A EN ESTA ACTIVIDAD","Cada niño/a puede hacer un máximo de 4 turnos de casal durante la CVE."]
["Nº DE DÍAS DE COLONIES QUE REALIZARÁ EL NIÑO/A","Cada niño/a puede hacer un máximo de 14 días de colonias durante la CVE."]

{"sheet":"DESPL.","index":2,"n_rows":42,"n_cols":1,"rows_kept":42,"cut":false,"hidden":true,"merged":[]}
[]
["Hombre"]
["Mujer"]
["Otros"]
[]
["SIEI"]
["SIAL"]
["AIS"]
["ESCUELA ESPECIAL"]
["SEI BRESSOL"]
["RESERVA NESE A"]
[]
[]
["SÍ"]
["NO"]
[]
[]
[1]
[2]
[3]
[4]
[]
[]
[]
["FÍSICA MOTÓRICA"]
["FÍSICA NO MOTÓRICA"]
["FÍSICA-INTELECTUAL"]
["TRASTORNO MENTAL"]
["INTELECTUAL"]
["VISUAL"]
["AUDITIVA"]
["RETARD GEN. DESARROLLO."]
["TEA"]
[]
["A"]
["B"]
["C"]
[]
["GRADO I"]
["GRADO II"]
["GRADO III"]
["NO"]